fUSD/lending_fUSD_20240212
["ID","MTS","AMOUNT","RATE_DAILY","PERIOD"]
[313790349,1707724308952,-672.72,0.00025853,2]
[313790350,1707724308962,-507.87,0.00025853,2]
[313790351,1707724308972,-783.44,0.00025853,2]
[313790352,1707724308982,-504.77,0.00025853,2]
[313790353,1707724308992,-500.0,0.00025853,2]
[313790354,1707724309002,-751.88,0.00025853,2]
[313790355,1707724309011,-500.0,0.00025853,2]
[313790356,1707724309021,-1243.18,0.00025853,2]
[313790357,1707724309031,-974.3,0.00025853,2]
[313790358,1707724309041,-500.0,0.00025853,2]
[313790359,1707724309051,-7827.18,0.00025853,2]
[313790360,1707724309061,-500.0,0.00025853,2]
[313790361,1707724309071,-967.31,0.00025853,2]
[313790362,1707724309081,-2173.97,0.00025853,2]
[313790363,1707724309091,-353.53784583,0.00025853,2]
[313790364,1707724309101,-1551.42,0.00025853,2]
[313790365,1707724309110,-1390.31,0.00025853,2]
[313790366,1707724309120,-537.36,0.00025853,2]
[313790367,1707724309130,-500.0,0.00025853,2]
[313790368,1707724309140,-2945.14,0.00025853,2]
[313790369,1707724309150,-974.61,0.00025853,2]
[313790370,1707724309159,-500.0,0.00025853,2]
[313790371,1707724309169,-1019.27,0.00025853,2]
[313790372,1707724309179,-806.3,0.00025853,2]
[313790373,1707724309190,-570.23,0.00025853,2]
[313790374,1707724309200,-500.0,0.00025853,2]
[313790375,1707724309211,-587.74,0.00025853,2]
[313790376,1707724309221,-922.68,0.00025853,2]
[313790377,1707724309231,-1002.52,0.00025853,2]
[313790378,1707724309240,-1154.55,0.00025853,2]
[313790379,1707724309251,-880.38,0.00025853,2]
[313790380,1707724309261,-1257.42,0.00025853,2]
[313790381,1707724309271,-719.41,0.00025853,2]
[313790382,1707724309281,-744.24,0.00025853,2]
[313790383,1707724309291,-500.0,0.00025853,2]
[313790384,1707724309301,-506.58,0.00025853,2]
[313790385,1707724309311,-655.13,0.00025853,2]
[313790386,1707724309321,-1365.54,0.00025853,2]
[313790387,1707724309331,-432.99823779,0.00025853,2]
[313790388,1707724309340,-1350.62,0.00025853,2]
[313790389,1707724309350,-772.77,0.00025853,2]
[313790390,1707724309361,-2935.99,0.00025853,2]
[313790391,1707724309371,-500.0,0.00025853,2]
[313790392,1707724309382,-444.36697099,0.00025853,2]
[313790393,1707724309393,-500.0,0.00025853,2]
[313790394,1707724309403,-1330.37,0.00025853,2]
[313790395,1707724309413,-1466.7,0.00025853,2]
[313790396,1707724309423,-500.0,0.00025853,2]
[313790397,1707724309437,-992.91,0.00025853,2]
[313790398,1707724309447,-3717.73,0.00025853,2]
[313790399,1707724309458,-4577.04,0.00025853,2]
[313790400,1707724309468,-500.0,0.00025853,2]
[313790401,1707724309478,-3566.79,0.00025853,2]
[313790402,1707724309488,-2751.21,0.00025853,2]
[313790403,1707724309500,-603.29,0.00025853,2]
[313790404,1707724309511,-2597.39,0.00025853,2]
[313790405,1707724309521,-1093.06,0.00025853,2]
[313790406,1707724309531,-1658.55,0.00025853,2]
[313790407,1707724309542,-754.43,0.00025853,2]
[313790408,1707724309552,-1509.11,0.00025853,2]
[313790409,1707724309563,-933.4,0.00025853,2]
[313790410,1707724309716,-500.0,0.00025853,2]
[313790411,1707724309734,-1039.67,0.00025853,2]
[313790412,1707724309743,-558.4,0.00025853,2]
[313790413,1707724309753,-581.28,0.00025853,2]
[313790414,1707724309763,-2115.36,0.00025853,2]
[313790415,1707724309772,-1608.32,0.00025853,2]
[313790416,1707724309782,-1871.04,0.00025853,2]
[313790417,1707724309792,-535.09,0.00025853,2]
[313790418,1707724309801,-13505.82,0.00025853,2]
[313790419,1707724309811,-521.2,0.00025853,2]
[313790420,1707724309820,-1098.36,0.00025853,2]
[313790421,1707724309830,-2160.67,0.00025853,2]
[313790422,1707724309839,-500.0,0.00025853,2]
[313790423,1707724309849,-1598.78,0.00025853,2]
[313790424,1707724309858,-728.66,0.00025853,2]
[313790425,1707724309867,-500.0,0.00025853,2]
[313790426,1707724309877,-3742.33,0.00025853,2]
[313790427,1707724309886,-500.0,0.00025853,2]
[313790428,1707724309895,-708.87,0.00025853,2]
[313790429,1707724309904,-500.0,0.00025853,2]
[313790430,1707724309914,-500.0,0.00025853,2]
[313790431,1707724309923,-612.51,0.00025853,2]
[313790432,1707724309933,-500.0,0.00025855,2]
[313790433,1707724309942,-500.0,0.00025855,2]
[313790434,1707724309951,-500.0,0.00025855,2]
[313790435,1707724309961,-500.0,0.00025855,2]
[313790436,1707724309970,-500.0,0.00025855,2]
[313790437,1707724309980,-500.0,0.00025855,2]
[313790438,1707724309990,-159.08279219,0.00025855,2]
[313790439,1707724309999,-500.0,0.00025855,2]
[313790440,1707724310008,-500.0,0.00025855,2]
[313790441,1707724310018,-501.31,0.00025855,2]
[313790442,1707724310027,-500.0,0.00025855,2]
[313790443,1707724310038,-500.0,0.00025855,2]
[313790444,1707724310048,-500.0,0.00025855,2]
[313790445,1707724310058,-500.0,0.00025855,2]
[313790446,1707724310068,-1225.76,0.00025855,2]
[313790447,1707724310078,-503.01,0.00025855,2]
[313790448,1707724310088,-501.14,0.00025855,2]
[313790449,1707724310097,-500.0,0.00025855,2]
[313790450,1707724310107,-566.98554653,0.00025855,2]
[313790451,1707724310118,-868.66,0.00025855,2]
[313790452,1707724310128,-500.0,0.00025855,2]
[313790453,1707724310138,-500.0,0.00025855,2]
[313790454,1707724310148,-500.0,0.00025855,2]
[313790455,1707724310157,-1657.54,0.00025855,2]
[313790456,1707724310167,-500.0,0.00025855,2]
[313790457,1707724310176,-500.0,0.00025855,2]
[313790458,1707724310186,-937.0,0.00025855,2]
[313790459,1707724310197,-500.0,0.00025855,2]
[313790460,1707724310207,-500.0,0.00025855,2]
[313790461,1707724310216,-836.61,0.00025855,2]
[313790462,1707724310226,-789.02,0.00025855,2]
[313790463,1707724310236,-500.0,0.00025855,2]
[313790464,1707724310247,-500.0,0.00025855,2]
[313790465,1707724310256,-741.07,0.00025855,2]
[313790466,1707724310266,-702.48,0.00025855,2]
[313790467,1707724310276,-1093.1,0.00025855,2]
[313790468,1707724310286,-1102.3,0.00025855,2]
[313790469,1707724310296,-500.0,0.00025855,2]
[313790470,1707724310306,-500.0,0.00025855,2]
[313790471,1707724310316,-1010.79,0.00025855,2]
[313790472,1707724310326,-500.0,0.00025855,2]
[313790473,1707724310336,-500.0,0.00025855,2]
[313790474,1707724310345,-1081.23,0.00025855,2]
[313790475,1707724310355,-500.0,0.00025855,2]
[313790476,1707724310365,-858.73,0.00025855,2]
[313790477,1707724310375,-1022.22,0.00025855,2]
[313790478,1707724310385,-968.51,0.00025855,2]
[313790479,1707724310395,-500.0,0.00025855,2]
[313790480,1707724310405,-1029.72,0.00025855,2]
[313790481,1707724310414,-500.0,0.00025855,2]
[313790482,1707724310425,-500.0,0.00025855,2]
[313790483,1707724310440,-500.0,0.00025855,2]
[313790484,1707724310450,-565.78,0.00025855,2]
[313790485,1707724310460,-758.66,0.00025855,2]
[313790486,1707724310471,-500.0,0.00025855,2]
[313790487,1707724310481,-598.15,0.00025855,2]
[313790488,1707724310492,-985.25,0.00025855,2]
[313790489,1707724310502,-637.04,0.00025855,2]
[313790490,1707724310512,-1101.79,0.00025855,2]
[313790491,1707724310521,-564.71,0.00025855,2]
[313790492,1707724310533,-501.05,0.00025855,2]
[313790493,1707724310545,-500.0,0.00025855,2]
[313790494,1707724310555,-500.0,0.00025855,2]
[313790495,1707724310565,-500.0,0.00025855,2]
[313790496,1707724310575,-905.03,0.00025855,2]
[313790497,1707724310586,-500.0,0.00025855,2]
[313790498,1707724310595,-1934.66,0.00025855,2]
[313790499,1707724310605,-500.0,0.00025855,2]
[313790500,1707724310615,-500.0,0.00025855,2]
[313790501,1707724310624,-740.57,0.00025855,2]
[313790502,1707724310634,-644.41,0.00025855,2]
[313790503,1707724310645,-500.0,0.00025855,2]
[313790504,1707724310654,-500.0,0.00025855,2]
[313790505,1707724310665,-970.49,0.00025855,2]
[313790506,1707724310674,-618.55605576,0.00025855,2]
[313790507,1707724310684,-500.0,0.00025855,2]
[313790508,1707724310694,-578.95385313,0.00025855,2]
[313790509,1707724310704,-500.0,0.00025855,2]
[313790510,1707724310714,-500.0,0.00025855,2]
[313790511,1707724310724,-956.03,0.00025855,2]
[313790512,1707724310733,-500.0,0.00025855,2]
[313790513,1707724310744,-500.0,0.00025855,2]
[313790514,1707724310754,-2083.73,0.00025855,2]
[313790515,1707724310764,-500.0,0.00025855,2]
[313790516,1707724310774,-500.0,0.00025855,2]
[313790517,1707724310783,-500.0,0.00025855,2]
[313790518,1707724310792,-913.37,0.00025855,2]
[313790519,1707724310802,-500.0,0.00025855,2]
[313790520,1707724310811,-576.68,0.00025855,2]
[313790521,1707724310821,-500.0,0.00025855,2]
[313790522,1707724310831,-529.68,0.00025855,2]
[313790523,1707724310841,-537.8,0.00025855,2]
[313790524,1707724310850,-779.11,0.00025855,2]
[313790525,1707724310860,-984.19,0.00025855,2]
[313790526,1707724310869,-514.18,0.00025855,2]
[313790527,1707724310879,-500.0,0.00025855,2]
[313790528,1707724310889,-1281.17,0.00025855,2]
[313790529,1707724310899,-518.38,0.00025855,2]
[313790530,1707724310910,-500.0,0.00025855,2]
[313790531,1707724310920,-500.0,0.00025855,2]
[313790532,1707724310930,-500.0,0.00025855,2]
[313790533,1707724310940,-1010.51,0.00025855,2]
[313790534,1707724310950,-617.28,0.00025855,2]
[313790535,1707724310960,-523.04,0.00025855,2]
[313790536,1707724310970,-500.0,0.00025855,2]
[313790537,1707724310980,-500.0,0.00025855,2]
[313790538,1707724310989,-1143.13,0.00025855,2]
[313790539,1707724310999,-531.64,0.00025855,2]
[313790540,1707724311009,-538.42,0.00025855,2]
[313790541,1707724311019,-541.44,0.00025855,2]
[313790542,1707724311029,-1417.01,0.00025855,2]
[313790543,1707724311039,-630.75,0.00025855,2]
[313790544,1707724311049,-500.0,0.00025855,2]
[313790545,1707724311059,-611.91,0.00025855,2]
[313790546,1707724311070,-500.0,0.00025855,2]
[313790547,1707724311079,-500.0,0.00025855,2]
[313790548,1707724311089,-737.84,0.00025855,2]
[313790549,1707724311099,-509.88,0.00025855,2]
[313790550,1707724311109,-500.0,0.00025855,2]
[313790551,1707724311119,-500.0,0.00025855,2]
[313790552,1707724311130,-500.0,0.00025855,2]
[313790553,1707724311139,-787.74,0.00025855,2]
[313790554,1707724311150,-625.95,0.00025855,2]
[313790555,1707724311159,-164.44599704,0.00025855,2]
[313790556,1707724311169,-531.17,0.00025855,2]
[313790557,1707724311179,-567.65,0.00025855,2]
[313790558,1707724311189,-500.0,0.00025855,2]
[313790559,1707724311199,-850.14,0.00025855,2]
[313790560,1707724311208,-500.0,0.00025856,2]
[313790561,1707724311218,-834.63,0.00025856,2]
[313790562,1707724311228,-500.0,0.00025856,2]
[313790563,1707724311238,-538.57,0.00025856,2]
[313790564,1707724311248,-561.22,0.00025856,2]
[313790565,1707724311258,-923.84,0.00025856,2]
[313790566,1707724311268,-870.36,0.00025856,2]
[313790567,1707724311278,-500.0,0.00025856,2]
[313790568,1707724311287,-723.82,0.00025856,2]
[313790569,1707724311296,-500.0,0.00025856,2]
[313790570,1707724311306,-4206.0,0.00025958,2]
[313790571,1707724311316,-4181.913221,0.00026,2]
[313790572,1707724311326,-500.0,0.00026001,2]
[313790573,1707724311335,-574.16,0.00026001,2]
[313790574,1707724311345,-500.0,0.00026001,2]
[313790575,1707724311354,-228.195059,0.00026001,2]
[313790576,1707724311364,-567.92,0.00026001,2]
[313790577,1707724311373,-500.0,0.00026001,2]
[313790578,1707724311384,-732.18,0.00026001,2]
[313790579,1707724311393,-500.0,0.00026001,2]
[313790580,1707724311403,-500.0,0.00026001,2]
[313790581,1707724311413,-540.94,0.00026001,2]
[313790582,1707724311423,-500.0,0.00026001,2]
[313790583,1707724311437,-612.65,0.00026001,2]
[313790584,1707724311447,-1180.52,0.00026123,2]
[313790585,1707724311457,-1896.25,0.00026123,2]
[313790586,1707724311467,-847.31,0.00026123,2]
[313790587,1707724311479,-534.72,0.00026123,2]
[313790588,1707724311490,-500.0,0.00026123,2]
[313790589,1707724311500,-500.0,0.00026123,2]
[313790590,1707724311510,-1982.34,0.00026124,2]
[313790591,1707724311520,-2165.45,0.00026124,2]
[313790592,1707724311530,-621.75,0.00026124,2]
[313790593,1707724311540,-3012.86,0.00026124,2]
[313790594,1707724311550,-2263.16,0.00026124,2]
[313790595,1707724311560,-797.7,0.00026124,2]
[313790596,1707724311570,-500.0,0.00026124,2]
[313790597,1707724311580,-698.6,0.00026124,2]
[313790598,1707724311591,-500.0,0.00026124,2]
[313790599,1707724311600,-12125.24,0.00026124,2]
[313790600,1707724311610,-1922.52,0.00026124,2]
[313790601,1707724311621,-500.0,0.00026124,2]
[313790602,1707724311631,-500.0,0.00026124,2]
[313790603,1707724311641,-2475.59,0.00026124,2]
[313790604,1707724311652,-500.0,0.00026124,2]
[313790605,1707724311661,-500.0,0.00026124,2]
[313790606,1707724311672,-1975.23,0.00026124,2]
[313790607,1707724311682,-500.0,0.00026124,2]
[313790608,1707724311693,-503.82236313,0.00026124,2]
[313790609,1707724311703,-617.92,0.00026126,2]
[313790610,1707724311714,-500.0,0.00026126,2]
[313790611,1707724311725,-702.45,0.00026126,2]
[313790612,1707724311735,-500.0,0.00026126,2]
[313790613,1707724311746,-500.0,0.00026126,2]
[313790614,1707724311756,-500.0,0.00026126,2]
[313790615,1707724311767,-500.0,0.00026126,2]
[313790616,1707724311778,-3082.76,0.00026126,2]
[313790617,1707724311789,-595.48,0.00026126,2]
[313790618,1707724311799,-1116.74,0.00026126,2]
[313790619,1707724311809,-500.0,0.00026126,2]
[313790620,1707724311820,-500.0,0.00026126,2]
[313790621,1707724311830,-580.47,0.00026126,2]
[313790622,1707724311840,-5464.12,0.00026126,2]
[313790623,1707724311850,-500.0,0.00026126,2]
[313790624,1707724311860,-500.0,0.00026126,2]
[313790625,1707724311871,-500.0,0.00026126,2]
[313790626,1707724311880,-500.0,0.00026126,2]
[313790627,1707724311891,-5570.51,0.00026126,2]
[313790628,1707724311900,-1834.77,0.00026126,2]
[313790629,1707724311910,-580.52,0.00026126,2]
[313790630,1707724311920,-20177.86,0.00026126,2]
[313790631,1707724311931,-500.0,0.00026126,2]
[313790632,1707724311942,-1991.86,0.00026126,2]
[313790633,1707724311952,-500.0,0.00026126,2]
[313790634,1707724311962,-630.66,0.00026126,2]
[313790635,1707724311971,-511.3,0.00026126,2]
[313790636,1707724311982,-500.0,0.00026126,2]
[313790637,1707724311991,-6710.69,0.00026126,2]
[313790638,1707724312000,-500.0,0.00026126,2]
[313790639,1707724312010,-823.26,0.00026126,2]
[313790640,1707724312020,-500.0,0.00026126,2]
[313790641,1707724312030,-587.44,0.00026126,2]
[313790642,1707724312039,-500.0,0.00026126,2]
[313790643,1707724312186,-500.0,0.00026126,2]
[313790644,1707724312208,-500.0,0.00026126,2]
[313790645,1707724312217,-828.24,0.00026126,2]
[313790646,1707724312227,-1721.35,0.00026126,2]
[313790647,1707724312236,-500.0,0.00026126,2]
[313790648,1707724312246,-3534.38,0.00026126,2]
[313790649,1707724312255,-500.0,0.00026126,2]
[313790650,1707724312264,-2375.35,0.00026126,2]
[313790651,1707724312274,-500.0,0.00026126,2]
[313790652,1707724312283,-1540.99,0.00026126,2]
[313790653,1707724312293,-500.0,0.00026126,2]
[313790654,1707724312302,-500.0,0.00026126,2]
[313790655,1707724312311,-500.0,0.00026126,2]
[313790656,1707724312321,-1022.74,0.00026126,2]
[313790657,1707724312330,-500.0,0.00026126,2]
[313790658,1707724312340,-500.0,0.00026126,2]
[313790659,1707724312349,-500.0,0.00026126,2]
[313790660,1707724312358,-500.0,0.00026126,2]
[313790661,1707724312368,-1895.77,0.00026126,2]
[313790662,1707724312378,-620.86,0.00026126,2]
[313790663,1707724312387,-500.0,0.00026126,2]
[313790664,1707724312397,-1807.44,0.00026126,2]
[313790665,1707724312406,-921.33,0.00026126,2]
[313790666,1707724312416,-2338.23,0.00026126,2]
[313790667,1707724312427,-3233.45,0.00026126,2]
[313790668,1707724312437,-4525.21,0.00026126,2]
[313790669,1707724312447,-3688.06,0.00026126,2]
[313790670,1707724312457,-3591.61,0.00026126,2]
[313790671,1707724312467,-624.13,0.00026126,2]
[313790672,1707724312477,-1805.38,0.00026126,2]
[313790673,1707724312486,-591.5,0.00026126,2]
[313790674,1707724312496,-1201.85,0.00026126,2]
[313790675,1707724312505,-1176.56,0.00026126,2]
[313790676,1707724312516,-706.15,0.00026127,2]
[313790677,1707724312527,-769.24,0.00026127,2]
[313790678,1707724312538,-669.16,0.00026127,2]
[313790679,1707724312547,-537.83,0.00026127,2]
[313790680,1707724312557,-565.89,0.00026127,2]
[313790681,1707724312567,-793.91,0.00026127,2]
[313790682,1707724312576,-1052.88,0.00026127,2]
[313790683,1707724312586,-687.92,0.00026127,2]
[313790684,1707724312595,-500.0,0.00026127,2]
[313790685,1707724312604,-890.74,0.00026127,2]
[313790686,1707724312614,-624.91,0.00026127,2]
[313790687,1707724312623,-815.41,0.00026127,2]
[313790688,1707724312633,-583.58,0.00026127,2]
[313790689,1707724312643,-937.88,0.00026127,2]
[313790690,1707724312652,-500.0,0.00026127,2]
[313790691,1707724312662,-713.39,0.00026127,2]
[313790692,1707724312671,-677.31,0.00026127,2]
[313790693,1707724312680,-500.0,0.00026127,2]
[313790694,1707724312690,-719.29,0.00026127,2]
[313790695,1707724312700,-1300.69,0.00026127,2]
[313790696,1707724312709,-1183.66,0.00026127,2]
[313790697,1707724312719,-587.65,0.00026127,2]
[313790698,1707724312728,-888.66,0.00026127,2]
[313790699,1707724312737,-887.34,0.00026127,2]
[313790700,1707724312747,-1482.85,0.00026127,2]
[313790701,1707724312756,-672.72,0.00026127,2]
[313790702,1707724312766,-507.87,0.00026127,2]
[313790703,1707724312775,-783.44,0.00026127,2]
[313790704,1707724312784,-504.77,0.00026127,2]
[313790705,1707724312793,-500.0,0.00026127,2]
[313790706,1707724312802,-751.88,0.00026127,2]
[313790707,1707724312810,-500.0,0.00026127,2]
[313790708,1707724312820,-1243.18,0.00026127,2]
[313790709,1707724312829,-974.3,0.00026127,2]
[313790710,1707724312838,-500.0,0.00026127,2]
[313790711,1707724312848,-7827.18,0.00026127,2]
[313790712,1707724312857,-500.0,0.00026127,2]
[313790713,1707724312867,-967.31,0.00026127,2]
[313790714,1707724312876,-2173.97,0.00026127,2]
[313790715,1707724312886,-1551.42,0.00026127,2]
[313790716,1707724312895,-1390.31,0.00026127,2]
[313790717,1707724312904,-537.36,0.00026127,2]
[313790718,1707724312913,-477.56735388,0.00026127,2]
[313790719,1707724312923,-2945.14,0.00026127,2]
[313790720,1707724312932,-974.61,0.00026127,2]
[313790721,1707724312941,-500.0,0.00026127,2]
[313790722,1707724312951,-1019.27,0.00026127,2]
[313790723,1707724312960,-806.3,0.00026127,2]
[313790724,1707724312970,-570.23,0.00026127,2]
[313790725,1707724312980,-500.0,0.00026127,2]
[313790726,1707724312989,-587.74,0.00026127,2]
[313790727,1707724312998,-922.68,0.00026127,2]
[313790728,1707724313007,-1002.52,0.00026127,2]
[313790729,1707724313016,-1154.55,0.00026127,2]
[313790730,1707724313026,-880.38,0.00026127,2]
[313790731,1707724313035,-1257.42,0.00026127,2]
[313790732,1707724313044,-719.41,0.00026127,2]
[313790733,1707724313055,-744.24,0.00026127,2]
[313790734,1707724313065,-500.0,0.00026127,2]
[313790735,1707724313075,-506.58,0.00026127,2]
[313790736,1707724313085,-655.13,0.00026127,2]
[313790737,1707724313095,-1365.54,0.00026127,2]
[313790738,1707724313105,-1350.62,0.00026127,2]
[313790739,1707724313115,-772.77,0.00026127,2]
[313790740,1707724313124,-2935.99,0.00026127,2]
[313790741,1707724313134,-500.0,0.00026127,2]
[313790742,1707724313143,-500.0,0.00026127,2]
[313790743,1707724313153,-1330.37,0.00026127,2]
[313790744,1707724313163,-1466.7,0.00026127,2]
[313790745,1707724313172,-574.82336089,0.00026127,2]
[313790746,1707724313182,-992.91,0.00026127,2]
[313790747,1707724313192,-3717.73,0.00026127,2]
[313790748,1707724313202,-4577.04,0.00026127,2]
[313790749,1707724313211,-592.29862035,0.00026127,2]
[313790750,1707724313221,-3566.79,0.00026127,2]
[313790751,1707724313238,-2751.21,0.00026127,2]
[313790752,1707724313256,-603.29,0.00026127,2]
[313790753,1707724313273,-2597.39,0.00026127,2]
[313790754,1707724313292,-1093.06,0.00026127,2]
[313790755,1707724313309,-1658.55,0.00026127,2]
[313790756,1707724313327,-754.43,0.00026127,2]
[313790757,1707724313343,-1509.11,0.00026127,2]
[313790758,1707724313361,-933.4,0.00026127,2]
[313790759,1707724313378,-500.0,0.00026127,2]
[313790760,1707724313397,-1039.67,0.00026127,2]
[313790761,1707724313417,-558.4,0.00026127,2]
[313790762,1707724313437,-581.28,0.00026127,2]
[313790763,1707724313451,-2115.36,0.00026127,2]
[313790764,1707724313469,-1608.32,0.00026127,2]
[313790765,1707724313483,-1871.04,0.00026127,2]
[313790766,1707724313500,-535.09,0.00026127,2]
[313790767,1707724313517,-13505.82,0.00026127,2]
[313790768,1707724313533,-521.2,0.00026127,2]
[313790769,1707724313549,-1098.36,0.00026127,2]
[313790770,1707724313564,-2160.67,0.00026127,2]
[313790771,1707724313580,-500.0,0.00026127,2]
[313790772,1707724313596,-1598.78,0.00026127,2]
[313790773,1707724313613,-728.66,0.00026127,2]
[313790774,1707724313627,-500.0,0.00026127,2]
[313790775,1707724313644,-3742.33,0.00026127,2]
[313790776,1707724313660,-500.0,0.00026127,2]
[313790777,1707724313676,-708.87,0.00026127,2]
[313790778,1707724313692,-500.0,0.00026127,2]
[313790779,1707724313709,-500.0,0.00026127,2]
[313790780,1707724313724,-612.51,0.00026127,2]
[313790781,1707724313741,-500.0,0.00026129,2]
[313790782,1707724313757,-500.0,0.00026129,2]
[313790783,1707724313774,-500.0,0.00026129,2]
[313790784,1707724313790,-500.0,0.00026129,2]
[313790785,1707724313805,-500.0,0.00026129,2]
[313790786,1707724313820,-500.0,0.00026129,2]
[313790787,1707724313835,-500.0,0.00026129,2]
[313790788,1707724313850,-500.0,0.00026129,2]
[313790789,1707724313865,-501.31,0.00026129,2]
[313790790,1707724313881,-500.0,0.00026129,2]
[313790791,1707724313895,-500.0,0.00026129,2]
[313790792,1707724313911,-500.0,0.00026129,2]
[313790793,1707724313925,-500.0,0.00026129,2]
[313790794,1707724313940,-1225.76,0.00026129,2]
[313790795,1707724313956,-501.14,0.00026129,2]
[313790796,1707724313973,-503.01,0.00026129,2]
[313790797,1707724313987,-468.47119652,0.00026129,2]
[313790798,1707724314003,-868.66,0.00026129,2]
[313790799,1707724314019,-500.0,0.00026129,2]
[313790800,1707724314034,-500.0,0.00026129,2]
[313790801,1707724314050,-500.0,0.00026129,2]
[313790802,1707724314066,-1657.54,0.00026129,2]
[313790803,1707724314081,-500.0,0.00026129,2]
[313790804,1707724314096,-500.0,0.00026129,2]
[313790805,1707724314111,-937.0,0.00026129,2]
[313790806,1707724314127,-500.0,0.00026129,2]
[313790807,1707724314142,-500.0,0.00026129,2]
[313790808,1707724314157,-836.61,0.00026129,2]
[313790809,1707724314173,-789.02,0.00026129,2]
[313790810,1707724314188,-500.0,0.00026129,2]
[313790811,1707724314204,-500.0,0.00026129,2]
[313790812,1707724314218,-741.07,0.00026129,2]
[313790813,1707724314234,-702.48,0.00026129,2]
[313790814,1707724314249,-1093.1,0.00026129,2]
[313790815,1707724314265,-1102.3,0.00026129,2]
[313790816,1707724314279,-500.0,0.00026129,2]
[313790817,1707724314295,-500.0,0.00026129,2]
[313790818,1707724314310,-1010.79,0.00026129,2]
[313790819,1707724314325,-500.0,0.00026129,2]
[313790820,1707724314341,-500.0,0.00026129,2]
[313790821,1707724314356,-1081.23,0.00026129,2]
[313790822,1707724314372,-351.50850414,0.00026129,2]
[313790823,1707724314389,-858.73,0.00026129,2]
[313790824,1707724314405,-1022.22,0.00026129,2]
[313790825,1707724314420,-968.51,0.00026129,2]
[313790826,1707724314439,-500.0,0.00026129,2]
[313790827,1707724314455,-1029.72,0.00026129,2]
[313790828,1707724314471,-500.0,0.00026129,2]
[313790829,1707724314488,-500.0,0.00026129,2]
[313790830,1707724314507,-500.0,0.00026129,2]
[313790831,1707724314524,-565.78,0.00026129,2]
[313790832,1707724314539,-758.66,0.00026129,2]
[313790833,1707724314554,-500.0,0.00026129,2]
[313790834,1707724314570,-985.25,0.00026129,2]
[313790835,1707724314585,-637.04,0.00026129,2]
[313790836,1707724314604,-1101.79,0.00026129,2]
[313790837,1707724314619,-564.71,0.00026129,2]
[313790838,1707724314634,-501.05,0.00026129,2]
[313790839,1707724314650,-500.0,0.00026129,2]
[313790840,1707724314666,-500.0,0.00026129,2]
[313790841,1707724314682,-441.388786,0.00026129,2]
[313790842,1707724314698,-500.0,0.00026129,2]
[313790843,1707724314713,-1934.66,0.00026129,2]
[313790844,1707724314729,-500.0,0.00026129,2]
[313790845,1707724314744,-500.0,0.00026129,2]
[313790846,1707724314762,-740.57,0.00026129,2]
[313790847,1707724314779,-644.41,0.00026129,2]
[313790848,1707724314793,-454.30047468,0.00026129,2]